[Event "Stare Mesto Open-A 2022"]
[Site "Stare Mesto"]
[Date "2022.08.16"]
[Round "5.4"]
[White "Mojzis, Jaroslav"]
[Black "Skalsky, Alexandr"]
[Result "1/2-1/2"]
[ECO "A04"]
[WhiteElo "2108"]
[BlackElo "2187"]
[Annotator "TA"]
[PlyCount "212"]
[EventDate "2022.08.12"]
[EventType "swiss"]
[EventCountry "CZE"]
[SourceTitle "playchess.com"]
[Source "ChessBase"]
[SourceQuality "1"]
[TimeControl "40/5400+30:1800+30"]

{[%evp 17,212,20,8,0,0,7,0,7,14,5,6,-52,48,31,33,22,25,18,45,25,122,104,148,86,86,86,85,79,90,71,151,145,147,88,99,86,86,77,62,0,97,93,110,97,142,117,154,147,142,94,93,74,121,101,104,42,90,90,122,117,144,41,77,28,67,53,228,195,342,202,285,213,221,216,191,171,166,164,175,182,207,61,233,15,15,15,15,15,460,460,479,38,554,554,527,509,852,844,1138,516,2058,8,8,8,8,0,0,0,324,0,52,52,52,52,59,59,59,59,5072,5064,29970,29971,29970,422,29972,422,29978,29979,29979,422,29974,29975,29973,422,422,422,422,422,422,422,29976,29977,29979,422,422,422,422,422,422,422,422,422,422,422,422,422,422,422,422,422,422,422,422,422,422,422,422,422,422,422,422,422,422,422,422,0,422,422,422,422,422,422,422,422,422,422,422,422,422,422,422,0,422,0,415,0,424]} 1. Nf3 {[%emt 0:00:06]} g6 {[%emt 0:00:04]} 2. g3 {[%emt 0:00:31]} Bg7 {[%emt 0:00:13]} 3. d4 {[%emt 0:00:10]} Nf6 {[%emt 0:00:06]} 4. c4 {[%emt 0:00:14]} d5 {[%emt 0:00:15]} 5. cxd5 {[%emt 0:00:07]} Nxd5 {[%emt 0:00:31]} 6. Bg2 {[%emt 0:00:10]} Nb6 {[%emt 0:00:09]} 7. Nc3 {[%emt 0:00:59]} Nc6 {[%emt 0:00:41]} 8. e3 {[%emt 0:00:47]} O-O {[%emt 0:02:15]} 9. O-O {[%emt 0:04:20]} Re8 {[%emt 0:00:21]} 10. Nh4 {[%emt 0:01:36]} e5 {[%emt 0:00:37][%cal Re5d4]} 11. d5 {[%emt 0:00:11]} Nb4 {[%emt 0:01:42]} 12. e4 {[%emt 0:03:57]} c6 {[%emt 0:04:38]} 13. a3 {[%emt 0:01:16]} Na6 {[%emt 0:00:22]} 14. Be3 {[%emt 0:03:34]} (14. Re1 $11) 14... Bf6 {[%emt 0:15:40]} (14... cxd5 $15 15. exd5 (15. Nxd5 Nxd5 16. exd5 e4 $11) 15... f5) 15. Qe2 {[%emt 0:06:03]} Bxh4 {[%emt 0:04:09]} 16. gxh4 {[%emt 0:00:07]} Qxh4 {[%emt 0:01:11]} 17. f4 {[%emt 0:05:45]} Bg4 {[%emt 0:02:43]} 18. Qd3 {[%emt 0:01:59]} Rad8 {[%emt 0:08:59]} (18... Qe7 $11 {keeps the balance.}) 19. fxe5 $16 {[%emt 0:06:20]} Rxe5 {[%emt 0:01:07]} 20. h3 {[%emt 0:10:29]} (20. Rf4 $142) 20... Bc8 {[%emt 0:06:42]} (20... Bxh3 $2 21. Bf2 Qe7 22. Qxh3 $18) 21. Bd4 {[%emt 0:00:43]} Nd7 {[%emt 0:10:47]} 22. Bxe5 {[%emt 0:07:34]} Nxe5 {[%emt 0:00:11]} 23. Qe3 {[%emt 0:00:39]} g5 {[%emt 0:06:13]} (23... Re8 $142) 24. Rad1 {[%emt 0:05:52] Black must now prevent dxc6.} Re8 {[%emt 0:06:02]} 25. Qf2 {[%emt 0:05:01]} (25. Ne2 $142) 25... Qxf2+ {[%emt 0:08:49]} 26. Rxf2 {[%emt 0:00:11]} Nc5 {[%emt 0:00:02]} 27. Rfd2 {[%emt 0:07:19] Against Ncd3} Nc4 {[%emt 0:09:56]} 28. Rf2 {[%emt 0:02:09]} Ne5 $1 {[%emt 0:00:07]} 29. Bf1 {[%emt 0:00:56]} Ncd7 {[%emt 0:01:18]} 30. b4 {[%emt 0:01:29]} a6 {[%emt 0:01:28]} 31. a4 {[%emt 0:01:24]} g4 {[%emt 0:04:59]} 32. hxg4 {[%emt 0:01:49]} Nxg4 {[%emt 0:00:11] [#]} 33. Rg2 {[%emt 0:02:31]} (33. dxc6 $142 $1 bxc6 34. Rfd2 (34. Rg2 Nde5 $16)) 33... Nde5 {[%emt 0:00:02]} 34. Be2 {[%emt 0:00:54]} Kh8 {[%emt 0:00:41]} (34... h5 $142) 35. Rd2 {[%emt 0:06:11]} h5 {[%emt 0:01:30]} 36. b5 {[%emt 0:02:04]} (36. dxc6 $16 {c7 is the strong threat.} bxc6 37. a5) 36... axb5 {[%emt 0:02:09]} (36... cxb5 $14 37. axb5 f5) 37. axb5 {[%emt 0:00:57]} cxb5 {[%emt 0:01:25]} 38. Nxb5 {[%emt 0:04:57]} Bd7 {[%emt 0:00:40]} 39. Nd4 {[%emt 0:04:35]} ({White should try} 39. Nd6 $16 Rb8 40. Rb2) 39... Ra8 {[%emt 0:00:32]} 40. Rg3 {[%emt 0:00:36]} ({White should play} 40. Nb3 $16) 40... Ra1+ {[%emt 0:00:30]} 41. Kg2 {[%emt 0:30:11] Threatens to win with Nb3.} Ng6 $2 {[%emt 0:09:55]} (41... Nf6 $14) 42. Bxg4 $18 {[%emt 0:00:00]} hxg4 {[%emt 0:02:35]} (42... Bxg4 $142 43. d6 Ra8) 43. Rb3 {[%emt 0:00:00]} (43. Nb3 $142 Nh4+ 44. Kf2) 43... Nf4+ {[%emt 0:06:05]} (43... b5 $142 44. Nxb5 Ne5) 44. Kg3 {[%emt 0:00:00]} Nh5+ {[%emt 0:00:15]} 45. Kf2 {[%emt 0:00:00]} Nf6 {[%emt 0:07:05]} 46. Re2 {[%emt 0:00:00]} (46. Rxb7 Nxe4+ 47. Ke3 Nxd2 48. Rxd7 Nc4+ 49. Kf4 Rf1+ 50. Kg3 Kg7 $15) 46... Ra4 {[%emt 0:00:29]} 47. Ke3 {[%emt 0:00:00]} (47. Rxb7 Rxd4 48. e5 g3+ 49. Kxg3 Nh5+ 50. Kf3 Bg4+ 51. Ke3 Rxd5 $11) 47... b5 {[%emt 0:01:23]} 48. Kd3 {[%emt 0:00:00]} g3 {[%emt 0:03:24]} 49. Nxb5 {[%emt 0:00:44]} ({White must play} 49. Rg2 $18) 49... Bg4 $2 {[%emt 0:03:19]} (49... Nh5 $1 $14) 50. Re3 $2 {[%emt 0:01:56]} ({White has to play} 50. Re1 $18) 50... g2 $11 {[%emt 0:00:21]} 51. Rb1 {[%emt 0:02:49] Hoping for Nc3.} Rb4 {[%emt 0:00:40]} 52. Ree1 {[%emt 0:01:18]} Ra4 $2 {[%emt 0:00:27][%mdl 8192]} (52... Nxd5 $1 $11 53. Rxb4 Nxb4+ 54. Kd2 Bf3) 53. Nc3 $18 {[%emt 0:00:28]} Ra3 {[%emt 0:00:24]} 54. Re3 $2 {[%emt 0:01:36]} ({Better is} 54. Ra1 $18 Be2+ 55. Kxe2 (55. Rxe2 Rxa1 56. Rxg2 Nd7 $18) 55... Rxc3 56. d6) 54... Nh5 $2 {[%emt 0:00:38][%mdl 8192]} (54... Nxd5 $1 $14 55. exd5 Bf5+ 56. Kd4 Bxb1 57. Rh3+ Kg8 58. Rg3+ Kf8) 55. Rg1 {[%emt 0:00:23]} Nf4+ {[%emt 0:00:32]} 56. Kd4 {[%emt 0:00:24]} Ra6 {[%emt 0:00:28]} (56... Kh7 $142 57. Rg3 Bc8) 57. Rg3 {[%emt 0:01:14]} Bh3 {[%emt 0:00:32]} 58. e5 {[%emt 0:01:10]} (58. Ke3 $142 Rf6 59. Ne2) 58... Ra3 {[%emt 0:00:23]} (58... Rh6 $142 59. Ke3 Ng6) 59. Rf3 $2 {[%emt 0:00:20]} (59. Ke4 $18) 59... Ne2+ $1 $11 {[%emt 0:00:31]} 60. Nxe2 {[%emt 0:00:41]} Rxf3 {[%emt 0:00:02][%mdl 4096] Endgame KRB-KRN} 61. Ke4 {[%emt 0:00:36]} Rf1 {[%emt 0:00:37]} 62. d6 $1 {[%emt 0:00:07]} Bg4 $2 {[%emt 0:00:52][%mdl 8192]} (62... Kg7 $11 {and Black has nothing to worry.}) 63. Ke3 $2 {[%emt 0:00:47]} (63. Rxg2 $18 Bc8 64. Ng3) 63... Bxe2 {[%emt 0:00:34]} (63... Rf3+ $11 64. Ke4 Ra3) 64. d7 $14 {[%emt 0:00:13]} Rxg1 {[%emt 0:00:30]} 65. d8=Q+ {[%emt 0:00:02] KQ-KRB} Kg7 {[%emt 0:00:23]} 66. Qg5+ {[%emt 0:00:05]} ({Reject} 66. Kxe2 Re1+ 67. Kf3 (67. Kxe1 g1=Q+ 68. Ke2 Qh2+ 69. Kf3 Qxe5 $15) 67... g1=R $11) 66... Kf8 {[%emt 0:00:18]} 67. Qh6+ {[%emt 0:00:52]} ({Much worse is} 67. Kxe2 Ra1 68. Qh6+ (68. Qxg2 Ra2+ 69. Kf3 Rxg2 $11) 68... Kg8 69. Qg5+ Kf8 70. Qxg2 Ra2+ 71. Kf3 Rxg2 72. Kxg2 Kg8 $11) 67... Kg8 $2 {[%emt 0:00:48][%mdl 8192]} (67... Ke8 $14) 68. Qh2 $18 {[%emt 0:00:46][%mdl 64] Deflection} Rb1 {[%emt 0:00:32]} 69. Qxg2+ {[%emt 0:00:11]} Kf8 {[%emt 0:00:04]} 70. Qxe2 {[%emt 0:00:08] KQ-KR} (70. Qa8+ $142 Kg7 71. Qg2+ Kf8 72. Qe4 Rg1 73. Kxe2 Rg6 74. Ke3 Kg7 75. Kf4) 70... Rb6 {[%emt 0:00:17]} (70... Rb3+ $18 71. Kd4 Rb6) 71. Qd2 {[%emt 0:00:36]} (71. Qg4 $142 Rb3+ 72. Kd2 Rb6 73. Qc8+ Kg7 74. Qd7 Re6 75. Qd4 Kf8 76. Kd3) 71... Re6 {[%emt 0:00:38]} (71... Ke7 $18 72. Qc3 Rg6 73. Qc5+ Ke8) 72. Qd8+ {[%emt 0:00:06]} Kg7 {[%emt 0:00:01]} 73. Qg5+ {[%emt 0:00:11]} (73. Kd4 $142 Ra6 74. Qe7 Rb6 75. Kd5 Rg6 76. Qd6 $3 {[%mdl 512]} Rh6 77. Qd7 Rg6 78. Qf5) 73... Rg6 {[%emt 0:00:09]} (73... Kf8 $18 74. Qd8+ Kg7 75. Qg5+ Kf8) 74. Qf5 {[%emt 0:00:04]} Kf8 {[%emt 0:00:34]} 75. Ke4 {[%emt 0:00:05]} (75. Qd7 $142 Kg7 76. Kd4 Rh6 77. Kd5 Kg8 78. Qd6 $3 {[%mdl 512]} Kg7 79. Qe7 Rg6 80. Qd6 $3 {[%mdl 512]}) 75... Ke7 {[%emt 0:00:06]} 76. Kd5 {[%emt 0:00:20]} Ke8 {[%emt 0:00:40]} 77. Qc8+ {[%emt 0:00:27]} Ke7 {[%emt 0:00:03]} 78. Qh8 {[%emt 0:00:32]} Re6 {[%emt 0:01:04]} (78... Ra6 $18 79. Qb8 Rg6) 79. Qh4+ {[%emt 0:00:15]} Ke8 {[%emt 0:00:05]} 80. Qh3 {[%emt 0:00:24]} (80. Qa4+ $142 Kf8 81. Qd7 Rg6 82. Qd8+ Kg7 {[#]} 83. Qd6 $3 {[%mdl 512]} Rh6 84. Qc5 Rg6 85. Qe7) 80... Rg6 {[%emt 0:00:09]} 81. Qf5 {[%emt 0:00:17]} Ke7 {[%emt 0:01:41]} 82. Qc8 {[%emt 0:00:15]} Rh6 {[%emt 0:00:19]} 83. Ke4 {[%emt 0:01:31]} Rh4+ {[%emt 0:01:25]} 84. Kf5 {[%emt 0:00:16] White threatens Qc7+ and mate.} Rh5+ {[%emt 0:00:19]} 85. Kf4 {[%emt 0:00:09]} Rh6 {[%emt 0:00:22]} 86. Kg5 {[%emt 0:00:18] Intending Qc7+ and mate.} Re6 {[%emt 0:01:01]} 87. Qh8 {[%emt 0:00:32]} Rc6 {[%emt 0:00:31]} 88. Kf5 {[%emt 0:01:09] White wants to mate with Qh4+.} Rg6 {[%emt 0:00:11]} 89. Qc8 {[%emt 0:00:13]} Rh6 {[%emt 0:00:04]} 90. Qb7+ {[%emt 0:01:08]} Ke8 {[%emt 0:00:15]} 91. Ke4 {[%emt 0:00:11]} Rg6 {[%emt 0:00:15]} 92. Kd5 {[%emt 0:00:11]} Rh6 {[%emt 0:00:26]} 93. Qb1 {[%emt 0:00:49]} Rg6 {[%emt 0:00:34]} 94. Qc1 {[%emt 0:00:09]} Ke7 {[%emt 0:00:10]} 95. Qh1 {[%emt 0:01:13]} Ke8 {[%emt 0:00:29]} 96. Qh4 $2 {[%emt 0:00:50]} (96. Qb1 $18) 96... Kd7 $2 {[%emt 0:00:30][%mdl 8192]} (96... Re6 $11 {and Black is okay.} 97. Qa4+ Kf8 98. Qb4+ Kg7) 97. Ke4 {[%emt 0:00:31]} Ke8 {[%emt 0:00:20]} 98. Kf5 {[%emt 0:00:08]} Ra6 {[%emt 0:01:30]} 99. Qg5 {[%emt 0:01:11]} Rg6 {[%emt 0:00:09]} 100. Qc1 {[%emt 0:00:15]} Ke7 {[%emt 0:00:21]} 101. Qd2 {[%emt 0:00:41]} Ke8 {[%emt 0:00:32]} 102. Qh2 {[%emt 0:00:50]} Ke7 {[%emt 0:00:44]} 103. Qh3 {[%emt 0:00:47]} Ke8 {[%emt 0:00:28]} 104. Qh4 {[%emt 0:00:08]} Ra6 $1 {[%emt 0:00:31]} 105. Qg5 {[%emt 0:00:46]} Rg6 {[%emt 0:00:12]} 106. Qh4 Ra6 $1 1/2-1/2

[Event "Stare Mesto Open-A 2022"]
[Site "Stare Mesto"]
[Date "2022.08.16"]
[Round "5.5"]
[White "Lojek, Marek"]
[Black "Cerveny, Martin"]
[Result "0-1"]
[ECO "B28"]
[WhiteElo "2142"]
[BlackElo "2396"]
[Annotator "TA"]
[PlyCount "112"]
[EventDate "2022.08.12"]
[EventType "swiss"]
[EventCountry "CZE"]
[SourceTitle "playchess.com"]
[Source "ChessBase"]
[SourceQuality "1"]
[TimeControl "40/5400+30:1800+30"]

{[%evp 25,112,60,81,50,64,33,35,35,37,8,8,-14,-14,-14,-17,-16,0,0,0,-2,0,-46,-59,-58,-49,-41,-42,-39,-33,-33,-41,-62,-28,-32,-34,-42,-15,-4,0,0,0,-363,-359,-404,-404,-385,-360,-434,-427,-429,-422,-406,-399,-395,-279,-272,-260,-253,-246,-272,-242,-272,-206,-266,-251,-506,-265,-297,-238,-508,-478,-510,-417,-531,-515,-456,-311,-743,-743,-728,-728,-728,-728,-708,-706,-691,-683,-577,-514]} 1. e4 {[%emt 0:00:24]} c5 {[%emt 0:00:09]} 2. Nf3 {[%emt 0:00:11]} a6 {[%emt 0:00:45]} 3. c4 {[%emt 0:03:24]} Nc6 {[%emt 0:01:17]} 4. d4 {[%emt 0:01:18]} cxd4 {[%emt 0:00:43]} 5. Nxd4 {[%emt 0:00:06]} Nf6 {[%emt 0:01:25]} 6. Nc3 {[%emt 0:00:14]} d6 {[%emt 0:04:03]} 7. Be2 {[%emt 0:02:22]} g6 {[%emt 0:04:08]} 8. Be3 {[%emt 0:06:08]} Bg7 {[%emt 0:02:02]} 9. f3 {[%emt 0:04:33]} O-O {[%emt 0:04:29]} 10. Qd2 {[%emt 0:01:09]} Bd7 {[%emt 0:02:04]} 11. O-O {[%emt 0:03:03]} Re8 {[%emt 0:03:08]} 12. Rfd1 {[%emt 0:02:36] The main line 12.Rfd1 scores better than 12.Rac1.} Rc8 {[%emt 0:01:27]} 13. Rac1 {[%emt 0:01:18]} Qa5 {[%emt 0:04:30]} 14. b3 {[%emt 0:03:15] B38: Sicilian: Maroczy Bind with 5...Bg7 and 7...0-0.} h5 {[%emt 0:03:54]} 15. a4 {[%emt 0:03:20] [#]} h4 $146 {[%emt 0:03:11]} ({Predecessor:} 15... Kh7 16. Kh1 Nxd4 17. Bxd4 Bh6 18. Be3 Bxe3 19. Qxe3 Qc5 20. Qf4 g5 21. Qd2 Qe5 {1-0 (77) Wagner,M (1978)-Georg,H (2153) Unna 2016}) 16. Nxc6 {[%emt 0:14:41] White is slightly better.} Bxc6 {[%emt 0:02:43]} 17. Nd5 {[%emt 0:01:02]} Qxd2 {[%emt 0:00:45]} 18. Nxf6+ {[%emt 0:02:09]} exf6 {[%emt 0:00:40]} 19. Rxd2 {[%emt 0:01:32]} f5 {[%emt 0:00:20]} 20. Rxd6 {[%emt 0:04:57]} Bf8 {[%emt 0:09:32]} 21. Rdd1 {[%emt 0:02:44]} Bxe4 {[%emt 0:03:20]} 22. fxe4 {[%emt 0:14:25]} Rxe4 {[%emt 0:00:40]} 23. Bf3 {[%emt 0:00:10]} Rxe3 $15 {[%emt 0:00:13]} 24. Bxb7 {[%emt 0:01:59] [#]} Bc5 $1 {[%emt 0:01:52][%cal Re3e1]} 25. Kf1 {[%emt 0:05:16] Inhibits Re1+.} Rb8 {[%emt 0:02:05]} 26. Bxa6 {[%emt 0:06:07]} Rbxb3 {[%emt 0:01:39]} 27. Rd5 {[%emt 0:01:17]} Ba3 {[%emt 0:01:22]} 28. Rcd1 {[%emt 0:02:42]} f4 {[%emt 0:04:38] Black is more active.} 29. Rb5 {[%emt 0:05:36]} Rbc3 {[%emt 0:00:39] Hoping for ...h3.} 30. Bb7 {[%emt 0:02:41]} Rc2 {[%emt 0:02:13]} 31. a5 {[%emt 0:00:38] a6 is the strong threat.} Bb2 {[%emt 0:04:47]} 32. a6 {[%emt 0:01:02] aiming for a7.} Ra3 {[%emt 0:00:09]} 33. Rxb2 $2 {[%emt 0:01:51][%mdl 8192] Black converts the advantage convincingly.} Rxb2 $11 {[%emt 0:00:06][%mdl 4096] Endgame KRR-KRB} 34. Rc1 {[%emt 0:00:18]} h3 {[%emt 0:07:16]} 35. gxh3 {[%emt 0:00:35]} f3 {[%emt 0:00:07]} 36. Kg1 {[%emt 0:01:08]} Rg2+ {[%emt 0:02:24]} 37. Kh1 {[%emt 0:00:36] [#]} Rc2 $3 {[%emt 0:00:08][%cal Rc2c1][%mdl 512]} 38. Rf1 {[%emt 0:00:42]} Rxc4 {[%emt 0:00:48]} 39. Rxf3 {[%emt 0:00:29]} Rc1+ {[%emt 0:03:05]} 40. Kg2 {[%emt 0:00:05]} Rc2+ {[%emt 0:02:35]} 41. Kg3 {[%emt 0:03:33]} Ra5 {[%emt 0:02:25]} 42. Rd3 {[%emt 0:01:40]} Kf8 {[%emt 0:01:49]} 43. Re3 {[%emt 0:02:10]} f5 {[%emt 0:03:43]} 44. h4 {[%emt 0:03:23]} Kg7 {[%emt 0:02:59]} 45. h3 $2 {[%emt 0:01:20]} (45. h5) 45... Kf6 {[%emt 0:01:08] Threatens to win with ...Ra4.} 46. Rb3 {[%emt 0:01:34]} Rc4 {[%emt 0:02:05] White must now prevent ...Ra1.} 47. Rb6+ $2 {[%emt 0:00:37]} (47. Bf3) 47... Kg7 $19 {[%emt 0:02:09] And now ...Ra3+ would win.} 48. Rb3 {[%emt 0:03:48] Against Ra3} Kh6 {[%emt 0:00:15]} 49. Rd3 {[%emt 0:01:12]} Rca4 {[%emt 0:02:54]} 50. Rd6 {[%emt 0:05:55]} Ra3+ {[%emt 0:00:26]} 51. Kg2 $2 {[%emt 0:03:23]} (51. Bf3) 51... Rb3 {[%emt 0:00:17] ( -> ...Ra2+). Black is clearly winning.} 52. Rd2 {[%emt 0:00:51] Against Ra2} Raa3 {[%emt 0:00:25]} 53. Bd5 {[%emt 0:02:08]} Rg3+ {[%emt 0:00:24]} 54. Kf2 {[%emt 0:02:08]} Rxh3 {[%emt 0:00:08]} 55. Kg2 {[%emt 0:01:30]} Rxh4 {[%emt 0:00:27]} 56. Bb7 {[%emt 0:00:30]} Rha4 {[%emt 0:00:17] Weighted Error Value: White=0.57/Black=0.16 (very precise)} 0-1

[Event "Stare Mesto Open-A 2022"]
[Site "Stare Mesto"]
[Date "2022.08.16"]
[Round "5.6"]
[White "Vrtal, Jaroslav"]
[Black "Zpevak, Pavel"]
[Result "1/2-1/2"]
[ECO "A46"]
[WhiteElo "2000"]
[BlackElo "2351"]
[Annotator "TA"]
[PlyCount "28"]
[EventDate "2022.08.12"]
[EventType "swiss"]
[EventCountry "CZE"]
[SourceTitle "playchess.com"]
[Source "ChessBase"]
[SourceQuality "1"]
[TimeControl "40/5400+30:1800+30"]

{[%evp 18,28,0,0,6,-20,-8,-62,0,5,7,0,0]} 1. d4 {[%emt 0:00:02]} Nf6 {[%emt 0:00:09]} 2. Nf3 {[%emt 0:00:04]} e6 {[%emt 0:00:33]} 3. e3 {[%emt 0:00:12]} b6 {[%emt 0:01:51]} 4. Bd3 {[%emt 0:00:38]} Bb7 {[%emt 0:02:13]} 5. O-O {[%emt 0:00:09]} d5 {[%emt 0:00:35]} 6. b3 {[%emt 0:01:06]} Bd6 {[%emt 0:01:04]} 7. Bb2 {[%emt 0:00:09]} Nbd7 {[%emt 0:02:07]} 8. Nbd2 {[%emt 0:00:07]} Ne4 {[%emt 0:03:19]} 9. c4 {[%emt 0:03:48]} O-O {[%emt 0:03:14]} 10. Rc1 {[%emt 0:01:41]} Qe7 {[%emt 0:06:19] E14: Queen's Indian: Classical Variation (4 e3).} 11. Bb1 {[%emt 0:06:56]} f5 {[%emt 0:02:22]} 12. Ne5 {[%emt 0:03:32] [#]} (12. Bd3 $11) 12... c5 $146 {[%emt 0:18:12]} ({Black should try} 12... Nxe5 $15 13. dxe5 Bb4 14. Nxe4 dxe4) ({Predecessor:} 12... Rad8 13. cxd5 exd5 14. Ndf3 f4 15. Qd3 Bxe5 16. dxe5 Ndc5 17. Ba3 Nxd3 18. Bxe7 Nxc1 19. Rxc1 fxe3 20. fxe3 {½-½ (41) Manolache,M (2433)-Parligras,M (2498) Bucharest 2002}) 13. Nxd7 $11 {[%emt 0:03:05]} Qxd7 {[%emt 0:00:17]} 14. Nxe4 {[%emt 0:06:48]} dxe4 {[%emt 0:07:27] A balanced but interesting game.  Weighted Error Value: White=0.22 (precise) /Black=0.30} 1/2-1/2

[Event "Stare Mesto Open-A 2022"]
[Site "Stare Mesto"]
[Date "2022.08.16"]
[Round "5.7"]
[White "Horvath, Tomas"]
[Black "Szotkowski, Jakub"]
[Result "1/2-1/2"]
[ECO "B12"]
[WhiteElo "2094"]
[BlackElo "2344"]
[Annotator "TA"]
[PlyCount "92"]
[EventDate "2022.08.12"]
[EventType "swiss"]
[EventCountry "CZE"]
[SourceTitle "playchess.com"]
[Source "ChessBase"]
[SourceQuality "1"]
[TimeControl "40/5400+30:1800+30"]

{[%evp 9,92,-12,-10,-19,-18,-18,-19,-14,-12,-9,-10,-20,-10,-20,-12,-20,-4,0,15,-23,-16,-39,-19,-24,-26,-33,-8,-33,-8,-25,-19,-28,-33,-40,-35,-36,-38,-43,0,0,0,-16,-5,-5,-5,-5,-10,-49,-49,-60,-6,-98,-65,-173,-11,-17,0,0,0,0,0,0,0,0,0,0,0,0,0,0,0,0,0,0,0,0,0,0,0,0,0,0,0,0,0]} 1. e4 {[%emt 0:00:02]} c6 {[%emt 0:00:16]} 2. d4 {[%emt 0:00:03]} d5 {[%emt 0:00:10]} 3. f3 {[%emt 0:00:05]} e6 {[%emt 0:01:13]} 4. Nc3 {[%emt 0:00:17]} Bb4 {[%emt 0:00:34]} 5. Bf4 {[%emt 0:02:08]} Nf6 {[%emt 0:00:42]} 6. e5 {[%emt 0:02:01] B12: Caro-Kann: Advance Variation.} Nfd7 {[%emt 0:02:48]} 7. a3 {[%emt 0:01:46]} Bxc3+ {[%emt 0:05:59]} 8. bxc3 {[%emt 0:00:06]} c5 {[%emt 0:00:03]} 9. Be3 {[%emt 0:09:15]} Qa5 {[%emt 0:04:10]} 10. Qd2 {[%emt 0:00:31]} b6 {[%emt 0:01:27]} 11. Bd3 {[%emt 0:07:17]} Ba6 {[%emt 0:01:02]} 12. f4 {[%emt 0:01:57] [#]} Bxd3 $146 {[%emt 0:11:45]} ({Predecessor:} 12... Nc6 13. Nf3 h6 14. O-O g6 15. Rfb1 Rc8 16. Bxa6 Qxa6 17. dxc5 Na5 18. cxb6 Nxb6 19. Bxb6 axb6 {0-1 (65) Carbone,S (1788)-Altomonte,G (1773) St Eufemia d'Aspromonte 2010}) 13. cxd3 {[%emt 0:02:04]} cxd4 {[%emt 0:12:10]} 14. Bxd4 {[%emt 0:01:47]} Nc6 {[%emt 0:01:24]} 15. Ne2 {[%emt 0:08:36]} Nc5 {[%emt 0:01:53]} 16. Bxc5 {[%emt 0:02:44]} bxc5 {[%emt 0:04:40]} 17. O-O {[%emt 0:00:50]} g6 {[%emt 0:07:06][%cal Oc6d4]} 18. Qe3 {[%emt 0:05:16]} h5 {[%emt 0:04:17]} 19. c4 {[%emt 0:03:57] Hoping for cxd5.} Ne7 {[%emt 0:07:47]} 20. Rac1 {[%emt 0:04:48]} d4 {[%emt 0:12:53]} 21. Qf3 {[%emt 0:01:28]} Rb8 {[%emt 0:00:49]} 22. Rb1 {[%emt 0:03:07]} O-O {[%emt 0:07:19] Threatens to win with ...Nf5.} 23. Ng3 {[%emt 0:04:42]} Nf5 {[%emt 0:00:17]} ({Reject} 23... Qxa3 24. Ra1 Qb3 25. Rxa7 $14) 24. Nxf5 {[%emt 0:11:48]} exf5 {[%emt 0:00:06]} 25. Qe2 {[%emt 0:00:16]} Rb6 {[%emt 0:00:58]} 26. Rxb6 {[%emt 0:01:50]} Qxb6 $11 {[%emt 0:00:06][%mdl 4096] Endgame KQR-KQR} 27. Re1 {[%emt 0:02:09]} Re8 {[%emt 0:00:19]} 28. Qc2 {[%emt 0:00:27] Prevents Qb3.} Qa5 {[%emt 0:02:31][%cal Ra5e1] [#]} 29. Rb1 {[%emt 0:02:24]} Re6 {[%emt 0:04:03]} (29... Qxa3 $15 30. Qd1 Qa6) 30. Kf2 {[%emt 0:05:49]} (30. Qd1 $11) 30... Qxa3 $17 {[%emt 0:00:23]} 31. Qb3 {[%emt 0:01:07] [#]} ({White should try} 31. Kg3 $15) 31... Qxb3 $2 {[%emt 0:03:25]} (31... Qa5 $1 $19 32. Rb2 Rb6) 32. Rxb3 $19 {[%emt 0:00:01] KR-KR. The position is equal.} Ra6 {[%emt 0:02:22]} 33. Rb5 {[%emt 0:02:03]} Ra3 {[%emt 0:00:07]} 34. Rxc5 {[%emt 0:00:13]} Rxd3 {[%emt 0:00:04]} 35. Rc8+ {[%emt 0:00:12]} Kg7 {[%emt 0:00:10]} 36. Rc7 {[%emt 0:00:06]} Kf8 {[%emt 0:01:28]} 37. Rxa7 {[%emt 0:01:01]} Rd2+ {[%emt 0:00:13]} 38. Kf3 {[%emt 0:00:14]} Rc2 {[%emt 0:00:19]} 39. Ra8+ {[%emt 0:01:19]} Kg7 {[%emt 0:00:22]} 40. Ra7 {[%emt 0:07:23]} Kf8 {[%emt 0:01:38]} 41. Ra8+ {[%emt 0:31:27]} Kg7 {[%emt 0:31:02]} 42. Ra7 {[%emt 0:00:04]} Rc3+ {[%emt 0:00:00]} 43. Kf2 {[%emt 0:00:00]} Rxc4 {[%emt 0:00:00]} 44. e6 {[%emt 0:00:00]} d3 {[%emt 0:00:00]} 45. Rxf7+ {[%emt 0:00:00]} Kg8 {[%emt 0:00:00]} 46. Kf3 {[%emt 0:00:00]} ({Much worse is} 46. Rd7 Rxf4+ 47. Kg1 Kf8 $17) 46... Re4 {[%emt 0:00:00] Weighted Error Value: White=0.11 (very precise) /Black=0.14 (very precise)} 1/2-1/2